bitfinex/quotes_SOLUSD_20240917
["timestamp","ask_amount","ask_price","bid_price","bid_amount"]
[1726583478078,10.0,134.16,134.15,7.4543]
[1726583478259,10.0,134.16,134.13,7.4553]
[1726583478577,10.0,134.16,134.12,34.7625]
[1726583478754,10.0,134.16,134.15,7.4543]
[1726583479086,10.0,134.18,134.16,7.4532]
[1726583479373,10.0,134.18,134.17,7.4532]
[1726583479970,7.4534,134.17,134.12,16.123]
[1726583480281,10.0,134.13,134.12,23.579]
[1726583480459,10.0,134.13,134.12,16.123]
[1726583480659,10.0,134.13,134.12,23.579]
[1726583481185,10.0,134.15,134.14,7.4548]
[1726583481664,0.5,134.19,134.15,7.4539]
[1726583481665,10.0,134.17,134.15,7.4539]
[1726583481861,10.5,134.19,134.17,7.4531]
[1726583482052,10.5,134.19,134.18,7.4526]
[1726583482257,10.5,134.19,134.17,18.6319]
[1726583482464,0.5,134.19,134.18,7.4526]
[1726583482879,0.5,134.19,134.18,80.09647804]
[1726583483304,7.9696245,134.27,134.21,18.6262]
[1726583483305,10.0,134.24,134.21,18.6262]
[1726583483594,0.5219245,134.27,134.18,72.76936804]
[1726583483595,10.0,134.26,134.24,7.4492]
[1726583483889,10.0,134.26,134.25,7.4487]
[1726583484304,0.5219245,134.27,134.26,7.4482]
[1726583485271,0.5219245,134.27,134.26,80.21756804]
[1726583485466,0.5219245,134.27,134.26,80.34305804]
[1726583485785,0.5219245,134.27,134.25,18.6209]
[1726583485964,0.5219245,134.27,134.25,26.0696]
[1726583486286,0.5219245,134.27,134.12,182.32337804]
[1726583486287,10.0,134.21,134.15,94.93557804]
[1726583486589,10.0,134.21,134.17,18.6322]
[1726583486967,10.0,134.21,134.19,7.4519]
[1726583487166,10.0,134.23,134.2,7.4515]
[1726583488067,10.0,134.23,134.21,7.4508]
[1726583488396,10.0,134.25,134.23,7.4497]
[1726583488559,0.5219245,134.27,134.23,7.4497]
[1726583488560,20.0,134.26,134.23,7.4497]
[1726583488764,10.5219245,134.27,134.24,7.4488]
[1726583488986,10.0,134.25,134.23,18.6238]
[1726583489504,10.0,134.25,134.23,26.0732]
[1726583489787,10.5219245,134.27,134.24,7.4492]
[1726583489977,10.5219245,134.27,134.25,7.4486]
[1726583490381,10.5219245,134.27,134.26,7.4482]
[1726583490593,10.5219245,134.27,134.25,18.6211]
[1726583490776,10.5219245,134.27,134.25,26.0694]
[1726583490978,0.5219245,134.27,134.26,7.4482]
[1726583492385,0.5219245,134.27,134.25,112.44937804]
[1726583492386,0.5219245,134.27,134.25,119.89807804]
[1726583492581,0.5219245,134.27,134.25,39.8055]
[1726583493287,0.5219245,134.27,134.25,21.1844]
[1726583493288,10.5219245,134.27,134.25,21.1844]
[1726583493588,10.5219245,134.27,134.25,28.6331]
[1726583494096,10.5219245,134.27,134.25,21.1844]
[1726583494299,10.5219245,134.27,134.25,28.6331]
[1726583494689,0.5219245,134.27,134.26,7.4482]
[1726583494993,0.5219245,134.27,134.26,8.93573398]
[1726583495382,0.5219245,134.27,134.25,93.82827804]
[1726583495383,10.5219245,134.27,134.25,21.1844]
[1726583496074,10.0,134.25,134.21,18.6265]
[1726583496277,10.0,134.25,134.23,7.4494]
[1726583496503,10.0,134.22,134.15,21.3734]
[1726583496680,10.0,134.22,134.2,7.4511]
[1726583496883,10.0,134.22,134.15,21.3734]
[1726583496884,10.0,134.2,134.17,7.453]
[1726583497076,10.0,134.18,134.16,26.0869]
[1726583497277,10.0,134.18,134.17,7.4532]
[1726583497499,10.0,134.2,134.18,7.4523]
[1726583497896,10.0,134.2,134.19,7.4521]
[1726583499411,10.0,134.22,134.21,7.451]
[1726583500809,0.5219245,134.27,134.15,58.6427]
[1726583500810,10.0,134.24,134.23,7.4498]
[1726583502196,10.0,134.26,134.25,7.4487]
[1726583502400,10.0,134.21,134.15,58.6427]
[1726583502706,10.0,134.21,134.18,7.4522]
[1726583502907,10.0,134.21,134.15,131.28657804]
[1726583502908,10.0,134.19,134.15,21.3734]
[1726583503683,10.0,134.19,134.18,7.4526]
[1726583504907,10.0,134.19,134.17,18.6324]
[1726583505115,10.0,134.21,134.19,18.629]
[1726583505413,10.0,134.21,134.2,7.4515]
[1726583505616,10.0,134.21,134.15,131.28687804]
[1726583505783,10.0,134.21,134.2,7.4515]
[1726583506183,0.5219245,134.27,134.22,7.4504]
[1726583506184,10.0,134.23,134.22,7.4504]
[1726583506611,10.0,134.23,134.21,18.6273]
[1726583506612,10.0,134.23,134.21,26.0781]
[1726583506985,10.0,134.23,134.22,7.4504]
[1726583508406,30.0,134.23,134.17,7.4527]
[1726583508601,10.0,134.16,134.14,7.4547]
[1726583508804,23.902374,134.22,134.1,72.64387804]
[1726583508805,10.0,134.14,134.1,72.64387804]
[1726583509106,10.0,134.14,134.12,7.4555]
[1726583510000,10.0,134.14,134.11,18.6405]
[1726583510001,10.0,134.14,134.13,7.4554]
[1726583510821,10.0,134.16,134.15,7.4543]
[1726583511789,10.0,134.16,134.14,18.6364]
[1726583511993,10.0,134.14,134.13,7.4549]
[1726583513108,10.0,134.16,134.15,7.4543]
[1726583513811,10.0,134.18,134.17,7.4532]
[1726583514313,10.0,134.18,134.16,18.6334]
[1726583514500,10.0,134.15,134.14,7.4548]
[1726583517019,10.0,134.17,134.16,26.0881]
[1726583517498,10.0,134.19,134.18,7.4526]
[1726583518404,10.0,134.17,134.16,26.0876]
[1726583518607,10.0,134.17,134.16,18.6344]
[1726583519004,10.0,134.17,134.16,26.0881]
[1726583522810,10.0,134.19,134.18,7.4526]
[1726583523514,10.0,134.21,134.2,26.0804]
[1726583523715,10.0,134.21,134.19,7.452]
[1726583523918,10.0,134.21,134.19,7.4519]
[1726583524121,10.0,134.18,134.17,25.0927]
[1726583524424,10.0,134.18,134.17,18.633]
[1726583524597,10.0,134.16,134.14,18.636]
[1726583524797,10.0,134.14,134.12,6.408]
[1726583525610,10.0,134.14,134.11,55.9214]
[1726583525611,10.0,134.12,134.11,63.3779]
[1726583526806,10.0,134.14,134.13,7.4554]
[1726583527102,10.0,134.16,134.15,26.0901]
[1726583528023,10.0,134.18,134.17,7.4532]
[1726583528523,10.0,134.16,134.15,26.0896]
[1726583529719,10.0,134.18,134.17,7.4532]
[1726583530221,19.1419245,134.27,134.19,26.0824]
[1726583530222,10.0,134.2,134.19,26.0824]
[1726583530423,10.0,134.11,134.09,15.8185]
[1726583530629,10.0,134.11,134.04,89.22567804]
[1726583530934,10.0,134.09,134.06,18.6473]
[1726583531104,10.0,134.09,134.08,7.4582]
[1726583531934,10.0,134.11,134.1,26.0999]
[1726583532225,10.0,134.11,134.1,18.6428]
[1726583532617,10.0,134.09,134.08,7.4581]
[1726583532927,10.0,134.09,134.08,7.4582]
[1726583533227,18.6349,134.16,134.04,41.3287]
[1726583533228,10.0,134.05,134.04,41.3287]
[1726583533423,10.0,134.05,134.0,72.64387804]
[1726583533424,10.0,134.03,134.02,7.4614]
[1726583534135,10.0,134.03,133.99,0.5219245]
[1726583534136,10.0,134.0,133.99,0.5219245]
[1726583534930,10.0,134.0,133.99,7.9851245]
[1726583536307,10.0,134.02,134.01,26.1174]
[1726583537502,10.0,134.04,134.03,7.461]
[1726583539807,10.0,134.0,133.99,0.5219245]
[1726583540007,17.58809,134.0,133.99,0.5219245]
[1726583540208,61.490464,134.0,133.99,0.5219245]
[1726583540432,37.71358,134.0,133.99,0.5219245]
[1726583542230,61.490464,134.0,133.99,2.45e-05]
[1726583542424,63.23274816,134.0,133.99,2.45e-05]
[1726583544136,63.23274816,134.0,133.93,0.3313182]
[1726583544137,27.59149,133.94,133.93,0.3313182]
[1726583544435,37.59149,133.94,133.93,0.4163426]
[1726583544641,30.25098,133.94,133.93,0.4163426]
[1726583544809,30.25098,133.94,133.93,7.8828426]
[1726583544810,10.0,133.94,133.93,7.8828426]
[1726583545437,10.0,133.96,133.95,26.129]
[1726583547029,10.0,133.94,133.93,0.4163426]
[1726583548013,30.0,133.94,133.93,0.4163426]
[1726583548622,10.0,133.94,133.93,0.4163426]
[1726583549023,10.0,133.94,133.93,7.8828426]
[1726583549517,10.0,133.94,133.93,0.4163426]
[1726583549721,10.0,133.94,133.93,7.8828426]
[1726583550443,61.368374,133.94,133.93,0.4163426]
[1726583552050,61.368374,133.94,133.93,0.2909426]
[1726583552051,71.368374,133.94,133.93,0.2909426]
[1726583552228,71.368374,133.94,133.88,0.3313182]
[1726583552229,37.4688,133.89,133.88,0.3313182]
[1726583552717,37.59429,133.89,133.88,0.3313182]
[1726583552913,30.12549,133.89,133.88,0.3313182]
[1726583553115,37.59429,133.89,133.88,0.3313182]
[1726583553322,30.12549,133.89,133.88,0.3313182]
[1726583553755,10.0,133.89,133.88,0.3313182]
[1726583554027,10.0,133.89,133.88,7.8006182]
[1726583554339,10.0,133.91,133.9,26.1388]
[1726583554538,2.84108416,134.01,133.88,0.3313182]
[1726583554539,10.0,133.89,133.88,0.3313182]
[1726583555068,10.0,133.89,133.88,7.8006182]
[1726583556744,10.0,133.91,133.9,26.1388]
[1726583558228,10.0,133.89,133.88,0.3313182]
[1726583558429,10.0,133.89,133.88,7.8006182]
[1726583558632,10.0,133.89,133.88,0.3313182]
[1726583559018,30.25098,133.89,133.88,0.3313182]
[1726583559222,37.71978,133.89,133.88,0.3313182]
[1726583559623,30.12549,133.89,133.88,0.3313182]
[1726583559841,30.0,133.89,133.88,0.3313182]
[1726583560043,10.0,133.89,133.88,7.8006182]
[1726583560255,10.0,133.89,133.88,0.3313182]
[1726583561143,10.0,133.89,133.88,7.8006182]
[1726583563763,17.59429,133.89,133.88,0.3313182]
[1726583564142,37.59429,133.89,133.88,0.3313182]
[1726583564547,37.71978,133.89,133.88,0.3313182]
[1726583565244,61.496664,133.89,133.88,1.82e-05]
[1726583565438,10.0,133.84,133.83,0.3313182]
[1726583565638,10.0,133.84,133.83,7.8034182]
[1726583566350,10.0,133.86,133.85,26.1486]
[1726583566652,1.74228416,133.95,133.87,7.4699]
[1726583566653,10.0,133.88,133.87,7.4699]
[1726583567359,10.0,133.88,133.86,6.542]
[1726583567539,10.0,133.88,133.87,7.4699]
[1726583568830,10.0,133.88,133.86,14.012]
[1726583569026,10.0,133.84,133.83,7.4721]
[1726583569456,10.0,133.86,133.85,26.1486]
[1726583571733,10.0,133.83,133.82,24.881]
[1726583571933,10.0,133.83,133.82,32.3535]
[1726583572154,10.0,133.83,133.82,18.6808]
[1726583572531,10.0,133.83,133.82,26.1535]
[1726583574150,37.39668612,134.09,133.89,23.241]
[1726583574363,16.6083,134.09,133.91,72.64387804]
[1726583574540,50.0,134.04,133.91,72.64387804]
[1726583574739,60.0,134.02,133.92,18.6665]
[1726583574957,50.0,134.0,133.91,7.4671]
[1726583575155,66.6083,134.0,133.89,26.1401]
[1726583575344,6.6083,134.0,133.89,18.6719]
[1726583575544,6.6083,134.0,133.92,18.6677]
[1726583575966,20.12549,133.99,133.92,18.6677]
[1726583576463,80.12549,133.99,133.82,110.00497804]
[1726583576662,0.12549,133.98,133.9,7.4679]
[1726583576839,20.12549,133.97,133.88,7.4688]
[1726583577043,20.12549,133.93,133.87,18.6738]
[1726583577237,0.12549,133.92,133.87,18.6738]
[1726583577465,0.12549,133.92,133.88,7.4693]
[1726583578539,20.12549,133.93,133.9,18.6706]
[1726583578734,20.0,133.99,133.9,18.6706]
[1726583578959,20.0,133.99,133.92,7.467]
[1726583579148,6.6083,134.0,133.92,7.467]
[1726583580262,6.6083,134.0,133.9,18.6706]
[1726583580263,20.0,133.98,133.9,18.6706]
[1726583580466,20.0,133.94,133.9,18.6706]
[1726583580763,24.027864,133.93,133.89,7.4685]
[1726583580945,0.25098,133.91,133.88,7.4693]
[1726583581148,0.25098,133.91,133.87,26.1445]
[1726583581354,20.0,133.9,133.87,18.6747]
[1726583581656,0.25098,133.89,133.84,18.6788]
[1726583581958,24.027864,133.95,133.87,7.4698]
[1726583582265,20.0,133.92,133.83,72.64387804]
[1726583582448,20.0,133.92,133.82,37.3611]
[1726583582449,20.0,133.92,133.91,7.4677]
[1726583582765,50.0,134.01,133.93,7.4662]
[1726583582973,50.0,134.03,133.94,7.4659]
[1726583583267,60.0,134.05,133.94,7.4659]
[1726583583562,60.0,134.05,133.95,7.4654]
[1726583583563,50.0,134.05,133.95,7.4654]
[1726583583802,6.2472,134.04,133.95,7.4654]
[1726583584063,6.2472,134.04,133.94,18.664]
[1726583584270,50.0,134.03,133.94,18.664]
[1726583584457,8.40816846,134.04,133.94,18.664]
[1726583584656,6.2472,134.04,133.94,18.664]
[1726583584856,6.2472,134.04,133.98,7.4633]
[1726583585043,0.493119,134.06,133.99,7.4631]
[1726583585246,0.493119,134.06,134.0,7.4626]
[1726583585475,0.493119,134.06,134.01,7.462]
[1726583585644,0.493119,134.06,134.0,18.6557]
[1726583585850,0.493119,134.06,134.03,7.4609]
[1726583586270,0.493119,134.06,133.99,18.6578]
[1726583586451,0.493119,134.06,133.95,72.64387804]
[1726583586863,7.4632,133.99,133.91,72.64387804]
[1726583587064,7.4627,134.0,133.95,7.4653]
[1726583587264,7.4627,134.0,133.91,72.64387804]
[1726583587265,20.25098,134.0,133.96,7.4645]
[1726583587588,0.12549,134.0,133.97,7.4641]
[1726583587769,20.0,134.01,134.0,7.4626]
[1726583587962,0.12549,134.04,133.98,18.6583]
[1726583588160,7.952519,134.06,134.02,7.4615]
[1726583588161,0.493119,134.06,134.02,7.4615]
[1726583588374,0.493119,134.06,134.02,18.6528]
[1726583588562,0.493119,134.06,134.03,7.4609]
[1726583589181,0.493119,134.06,134.02,18.6528]
[1726583589892,0.493119,134.06,134.04,7.4603]
[1726583590189,0.493119,134.06,134.05,26.1096]
[1726583590685,0.493119,134.06,134.02,18.6533]
[1726583590868,0.493119,134.06,134.02,26.1144]
[1726583591182,7.4605,134.04,133.99,42.0897]
[1726583591386,7.46,134.05,133.99,42.0897]
[1726583591561,7.952519,134.06,134.01,7.4619]
[1726583591761,0.493119,134.06,134.01,18.6543]
[1726583591960,20.493119,134.06,134.02,7.4614]
[1726583592186,20.493119,134.06,134.03,18.6512]
[1726583592385,0.493119,134.06,134.03,18.6512]
[1726583592789,0.493119,134.06,134.05,80.10377804]
[1726583594198,0.493119,134.06,134.03,26.1117]
[1726583594378,0.493119,134.06,134.03,18.6512]
[1726583594898,0.493119,134.06,134.02,7.4614]
[1726583595101,27.952519,134.06,134.01,7.462]
[1726583595286,20.493119,134.06,134.02,7.4615]
[1726583595669,0.493119,134.06,134.04,7.4599]
[1726583596002,0.493119,134.06,134.03,18.6524]
[1726583596293,0.493119,134.06,134.03,26.1129]
[1726583597298,0.493119,134.06,134.04,7.4604]
[1726583597477,0.493119,134.06,134.05,7.4599]
[1726583598570,0.34452478,134.13,134.06,18.6479]
[1726583598896,0.34452478,134.13,134.09,7.4576]
[1726583599194,0.34452478,134.13,134.08,7.4582]
[1726583599364,0.34452478,134.13,134.09,7.4575]
[1726583599566,0.34452478,134.13,134.1,7.4569]
[1726583600182,7.79992478,134.13,134.09,7.4575]
[1726583600380,0.34452478,134.13,134.09,7.4575]
[1726583600585,7.4571,134.1,134.05,18.6489]
[1726583601478,7.58209,134.11,134.06,7.4593]
[1726583601694,20.12549,134.07,134.03,7.4608]
[1726583602170,0.12549,134.1,134.04,7.4604]
[1726583602489,0.25098,134.08,134.04,7.4604]
[1726583603078,20.0,134.09,134.05,7.4597]
[1726583603271,20.0,134.1,134.05,18.6491]
[1726583603466,20.12549,134.11,134.07,7.4586]
[1726583603668,20.0,134.11,134.08,7.458]
[1726583604601,7.80012478,134.13,134.09,7.4576]
[1726583604774,0.34452478,134.13,134.07,18.6465]
[1726583604974,0.34452478,134.13,134.09,7.4575]
[1726583605200,7.79992478,134.13,134.09,7.4575]
[1726583605584,0.34452478,134.13,134.1,7.457]
[1726583605785,20.34452478,134.13,134.1,7.457]
[1726583606090,20.34452478,134.13,134.09,26.101]
[1726583606307,7.80002478,134.13,134.09,26.101]
[1726583606489,20.0,134.12,134.09,26.101]
[1726583607695,27.79992478,134.13,134.09,26.1012]
[1726583608000,20.34452478,134.13,134.1,7.4571]
[1726583608377,20.34452478,134.13,134.09,26.1011]
[1726583609179,7.80002478,134.13,134.09,26.1011]
[1726583609380,20.0,134.12,134.09,26.1011]
[1726583609701,0.34452478,134.13,134.1,7.457]
[1726583610208,7.80012478,134.13,134.09,26.1012]
[1726583610493,0.12549,134.12,134.05,91.29247804]
[1726583610697,7.58149,134.12,134.08,7.4577]
[1726583610880,7.58149,134.12,134.07,18.646]
[1726583610881,27.457,134.11,134.07,18.646]
[1726583611086,24.027864,134.12,134.04,18.6501]
[1726583611285,27.4587,134.07,134.04,18.6501]
[1726583611487,20.0,134.07,134.04,18.6501]
[1726583612088,7.4586,134.08,134.01,37.3082]
[1726583612089,20.0,134.09,134.06,18.6478]
[1726583612273,0.12549,134.1,134.01,37.3082]
[1726583612480,20.0,134.08,134.03,18.6522]
[1726583612689,20.0,134.08,134.01,37.3082]
[1726583612690,20.0,134.08,134.06,7.4592]
[1726583612898,0.34452478,134.13,134.05,18.6487]
[1726583613085,0.12549,134.12,134.05,18.6487]
[1726583613290,20.0,134.1,134.08,7.458]
[1726583613681,0.12549,134.12,134.08,7.458]
[1726583614077,0.12549,134.12,134.09,7.4575]
[1726583614507,7.79992478,134.13,134.09,7.4575]
[1726583614874,20.0,134.12,134.05,109.94327804]
[1726583615096,0.34452478,134.13,134.09,18.643]
[1726583615279,0.34452478,134.13,134.1,7.457]
[1726583615691,0.34452478,134.13,134.09,18.643]
[1726583615897,0.34452478,134.13,134.09,26.1004]
[1726583616393,20.0,134.12,134.09,18.643]
[1726583617184,0.12549,134.09,134.02,6.0939]
[1726583617394,0.12549,134.09,134.04,18.6503]
[1726583617702,20.0,134.08,134.04,26.1106]
[1726583617908,7.4592,134.07,134.02,13.5554]
[1726583618197,7.4595,134.06,134.02,6.0939]
[1726583618398,0.12549,134.09,134.02,6.0939]
[1726583618399,7.58429,134.07,134.02,13.5554]
[1726583618780,0.12549,134.06,133.98,25.257]
[1726583618977,7.4608,134.04,133.99,23.4322]
[1726583619181,7.58539,134.05,134.0,7.4626]
[1726583619484,20.0,134.04,134.01,7.462]
[1726583619688,0.25098,134.07,134.0,18.6558]
[1726583620107,7.4577,134.09,134.04,7.4604]
[1726583620312,0.12549,134.07,134.03,18.6524]
[1726583620602,0.25098,134.07,134.0,18.6565]
[1726583621413,0.25098,134.07,134.02,18.6528]
[1726583621414,0.12549,134.07,134.02,18.6528]
[1726583621713,7.4579,134.09,134.02,18.6528]
[1726583622011,7.4582,134.08,134.02,18.6528]
[1726583622174,18.6401,134.12,134.02,18.6528]
[1726583622175,7.4577,134.09,134.02,18.6528]
[1726583622375,7.4577,134.09,134.04,7.46]
[1726583622606,7.4572,134.1,134.05,7.4596]
[1726583622781,7.4566,134.11,134.06,7.4588]
[1726583623311,7.4561,134.12,134.06,18.647]
[1726583623603,6.0979,134.16,134.09,7.4572]
[1726583623905,6.0979,134.16,134.09,7.4576]
[1726583624209,7.4544,134.15,134.08,18.6447]
[1726583624414,6.0979,134.16,134.08,18.6447]
[1726583624706,7.4549,134.14,134.1,7.457]
[1726583624913,6.0979,134.16,134.08,18.6447]
[1726583625202,20.0,134.12,134.08,18.6447]
[1726583625383,20.0,134.15,134.08,18.6447]
[1726583625576,7.456,134.12,134.08,26.1029]
[1726583626683,0.12549,134.12,134.08,26.1029]
[1726583626891,0.12549,134.12,134.09,7.4572]
[1726583627586,27.80002478,134.13,134.09,7.4572]
[1726583627909,27.80002478,134.13,134.08,18.6447]
[1726583627910,0.34452478,134.13,134.08,18.6447]
[1726583628108,0.34452478,134.13,134.09,7.4572]
[1726583628320,20.0,134.13,134.09,7.4572]
[1726583628609,20.0,134.13,134.08,26.1027]
[1726583628610,27.94894698,134.13,134.08,26.1027]
[1726583628791,20.49344698,134.13,134.09,7.4575]
[1726583628999,0.49344698,134.13,134.11,7.4564]
[1726583629307,0.49344698,134.13,134.1,26.099]
[1726583630109,0.49344698,134.13,134.12,7.456]
[1726583631910,0.350225,134.19,134.14,23.776884]
[1726583632210,0.350225,134.19,134.18,7.4526]
[1726583633025,0.350225,134.19,134.18,80.09647804]
[1726583633529,0.350225,134.19,134.18,81.58595996]
[1726583633905,0.350225,134.19,134.18,80.09647804]
[1726583634106,0.350225,134.24,134.23,7.4498]
[1726583634507,0.350225,134.24,134.23,80.09367804]
[1726583634931,0.350225,134.24,134.23,96.04159014]
[1726583635110,0.350225,134.29,134.26,18.6201]
[1726583635311,0.350225,134.29,134.27,7.4475]
[1726583636127,0.350225,134.29,134.26,26.0682]
[1726583636313,20.0,134.3,134.26,26.0682]
[1726583636523,20.0,134.3,134.27,7.4476]
[1726583636707,20.0,134.3,134.26,26.0682]
[1726583637211,20.0,134.29,134.26,18.6201]
[1726583637718,27.4467,134.29,134.25,72.64387804]
[1726583637922,27.4467,134.29,134.24,7.4493]
[1726583638321,7.449,134.25,134.19,106.37537804]
[1726583638526,7.4478,134.27,134.22,7.4503]
[1726583639032,7.4483,134.26,134.21,26.0778]
[1726583640224,7.4483,134.26,134.19,87.74637804]
[1726583640225,20.0,134.27,134.19,87.74637804]
[1726583640406,24.027864,134.26,134.19,15.1025]
[1726583640607,0.12549,134.24,134.19,15.1025]
[1726583640918,7.4499,134.23,134.19,15.1025]
[1726583641225,0.12549,134.24,134.19,15.1025]
[1726583641536,7.4494,134.24,134.2,7.4515]
[1726583641828,20.0,134.24,134.21,7.4509]
[1726583642035,7.4479,134.27,134.22,1.4897651]
[1726583642207,7.4479,134.27,134.21,18.6267]
[1726583642631,7.4479,134.27,134.19,15.1025]
[1726583642632,25.1227,134.32,134.23,18.6243]
[1726583642939,7.4462,134.3,134.25,72.64387804]
[1726583643110,7.4462,134.3,134.25,80.09217804]
[1726583643435,0.4682723,134.35,134.25,91.26527804]
[1726583643436,7.4456,134.31,134.25,91.26527804]
[1726583643635,18.6116,134.33,134.25,91.26527804]
[1726583643874,7.4471,134.28,134.23,78.79517804]
[1726583644135,18.6116,134.33,134.23,78.79517804]
[1726583644136,7.4467,134.29,134.24,18.6225]
[1726583644323,50.0,134.33,134.19,15.1025]
[1726583644522,46.06334246,134.32,134.19,15.1025]
[1726583644724,7.4489,134.25,134.2,7.4511]
[1726583645428,7.4489,134.25,134.21,7.4509]
[1726583645936,20.0,134.25,134.21,7.4509]
[1726583646235,20.0,134.26,134.22,18.6257]
[1726583646412,7.4475,134.28,134.24,7.4492]
[1726583646611,7.4475,134.28,134.24,7.4493]
[1726583646815,42.390084,134.32,134.22,18.6257]
[1726583646816,18.6152,134.3,134.22,18.6257]
[1726583647125,7.4488,134.25,134.21,7.4506]
[1726583647323,7.4483,134.26,134.21,26.0781]
[1726583647521,7.4489,134.25,134.21,26.0781]
[1726583647727,7.4483,134.26,134.22,7.4504]
[1726583647949,20.0,134.26,134.21,18.6273]
[1726583648327,7.4473,134.28,134.23,18.6244]
[1726583648525,7.4464,134.3,134.25,18.6218]
[1726583648720,7.4464,134.3,134.26,7.4482]
[1726583649446,7.4455,134.31,134.27,7.4476]
[1726583649852,18.6119,134.33,134.25,18.6218]
[1726583650231,7.4477,134.27,134.23,7.4497]
[1726583650954,0.12549,134.24,134.14,0.0601738]
[1726583651247,7.4499,134.23,134.18,7.4526]
[1726583651420,7.4514,134.21,134.17,18.6327]
[1726583651623,20.0,134.22,134.17,26.0854]
[1726583652133,27.4506,134.22,134.17,26.0854]
[1726583652433,7.4511,134.21,134.17,18.6327]
[1726583652629,20.0,134.21,134.17,18.6327]
[1726583652827,7.57499,134.24,134.19,7.4517]
[1726583653033,20.0,134.23,134.19,7.4517]
[1726583653347,7.57499,134.24,134.2,7.4514]
[1726583653348,7.4495,134.24,134.2,7.4514]
[1726583653551,7.4495,134.24,134.19,7.4517]
[1726583653726,7.4495,134.24,134.17,18.6327]
[1726583654132,7.4489,134.25,134.19,18.6294]
[1726583654749,7.4495,134.24,134.2,7.4513]
[1726583655060,7.4488,134.25,134.2,7.4513]
[1726583655242,20.25098,134.27,134.21,7.4507]
[1726583655551,7.4491,134.25,134.21,7.4507]
[1726583655758,7.4495,134.24,134.2,7.4513]
[1726583656124,7.4499,134.23,134.19,26.0814]
[1726583656321,7.4501,134.23,134.19,18.6294]
[1726583656547,7.4501,134.23,134.19,26.0812]
[1726583656738,7.4505,134.22,134.19,18.6294]
[1726583657128,7.45,134.23,134.19,26.0813]
[1726583657624,7.4494,134.24,134.2,7.4515]
[1726583658232,20.25098,134.25,134.16,24.6732]
[1726583658454,7.4506,134.22,134.18,7.4523]
[1726583658831,7.4501,134.23,134.19,7.452]
[1726583659025,7.4501,134.23,134.18,18.6314]
[1726583659026,20.25098,134.22,134.15,18.6351]
[1726583659232,7.4524,134.19,134.15,26.089]
[1726583659432,7.4527,134.18,134.15,18.6351]
[1726583659646,7.4534,134.17,134.14,0.0601738]
[1726583660157,18.6291,134.2,134.14,0.0601738]
[1726583660328,7.4536,134.17,134.14,0.0601738]
[1726583660530,7.4539,134.16,134.14,0.0601738]
[1726583660733,7.4543,134.15,134.14,0.0601738]
[1726583661127,20.25098,134.19,134.14,0.0601738]
[1726583661460,7.4532,134.17,134.14,0.0601738]
[1726583661839,7.4538,134.16,134.14,0.0601738]
[1726583662235,7.4533,134.17,134.14,0.0601738]
[1726583662555,7.4527,134.18,134.14,7.5148738]
[1726583662758,7.57769,134.19,134.14,7.5148738]
[1726583663060,27.4527,134.18,134.14,7.5148738]
[1726583663267,7.4532,134.17,134.14,0.0601738]
[1726583663731,7.4538,134.16,134.14,0.0601738]
[1726583663932,0.12549,134.19,134.14,0.0601738]
[1726583663933,0.12549,134.17,134.14,0.0601738]
[1726583664360,27.70528,134.15,134.14,0.0601738]